bitfinex/quotes_SOLUSD_20240726
["timestamp","ask_amount","ask_price","bid_price","bid_amount"]
[1722003633879,1.09968391,181.92,181.78,12.65182663]
[1722003634197,1.09968391,181.92,181.79,16.1689]
[1722003634396,9.92229257,181.92,181.8,1.09969362]
[1722003634578,9.92229257,181.91,181.8,1.09969362]
[1722003634778,20.0,181.9,181.8,1.09969362]
[1722003635099,20.0,181.92,181.81,1.09965826]
[1722003635308,5.71000501,181.94,181.82,6.2598]
[1722003635595,5.71000501,181.94,181.83,1.09952233]
[1722003635778,11.20630501,181.94,181.82,6.2598]
[1722003635978,5.71000501,181.94,181.82,6.2598]
[1722003636408,5.71000501,181.94,181.83,1.09948254]
[1722003636901,11.21366864,181.96,181.82,6.2598]
[1722003637121,9.91996786,181.95,181.82,6.2598]
[1722003637279,9.91996786,181.95,181.83,6.59879147]
[1722003637619,5.71796864,181.96,181.84,5.4992]
[1722003637805,1.09968391,181.98,181.85,1.09932144]
[1722003637984,16.51386385,181.98,181.84,6.5985277]
[1722003638185,9.91907947,181.97,181.85,16.6266]
[1722003638673,9.91907947,181.98,181.86,7.12405069]
[1722003638878,29.91907947,181.98,181.86,7.12405069]
[1722003639104,9.91907947,181.97,181.86,7.12405069]
[1722003639281,20.0,181.96,181.86,6.0248]
[1722003639477,49.44,181.96,181.86,6.0248]
[1722003639677,9.91945034,181.95,181.86,6.0248]
[1722003639902,20.0,181.94,181.86,6.0248]
[1722003640122,21.09968391,181.94,181.86,6.0248]
[1722003640278,5.497,181.92,181.86,6.0248]
[1722003640479,5.4973,181.91,181.86,6.0248]
[1722003640701,20.0,181.9,181.86,6.0248]
[1722003641191,25.4972,181.91,181.86,6.0248]
[1722003641403,20.0,181.91,181.86,6.0248]
[1722003641578,5.4967,181.93,181.86,6.0248]
[1722003641774,21.09968391,181.92,181.86,6.0248]
[1722003641975,5.4972,181.91,181.86,6.0248]
[1722003642175,20.0,181.9,181.86,6.0248]
[1722003642396,20.0,181.92,181.86,6.0248]
[1722003642801,26.59668391,181.92,181.86,6.0248]
[1722003643510,20.0,181.92,181.86,6.0248]
[1722003643717,5.497,181.92,181.86,6.0248]
[1722003643914,26.59698391,181.91,181.86,6.0248]
[1722003644289,20.0,181.91,181.86,6.0248]
[1722003645528,5.4963,181.94,181.86,6.0248]
[1722003645814,9.92037249,181.95,181.86,6.0248]
[1722003646105,5.4957,181.96,181.86,6.0248]
[1722003646285,9.92019896,181.96,181.86,6.0248]
[1722003646609,11.21558304,181.99,181.87,15.2344]
[1722003646908,15.41454187,181.98,181.87,15.2344]
[1722003648012,29.91872932,181.97,181.87,15.2344]
[1722003648210,20.0,181.97,181.87,15.2344]
[1722003648513,5.72068304,181.99,181.87,16.33366868]
[1722003648683,9.91846512,181.98,181.87,16.33366868]
[1722003649326,15.41366512,181.98,181.87,16.33366868]
[1722003649616,5.4954,181.97,181.87,16.33366868]
[1722003649906,20.0,181.96,181.87,16.33366868]
[1722003650117,20.0,181.97,181.87,16.33366868]
[1722003650413,20.0,181.97,181.88,6.0256]
[1722003650619,20.0,181.98,181.89,1.09908745]
[1722003650816,20.0,181.98,181.9,1.09907732]
[1722003651186,6.27213852,182.05,181.91,6.4505]
[1722003651401,16.4783,182.12,181.92,1.09891462]
[1722003651402,5.72074335,182.02,181.92,1.09891462]
[1722003651600,5.4933,182.04,181.93,1.09891442]
[1722003652003,29.44,182.0,181.91,6.4505]
[1722003652332,5.4961,181.95,181.91,6.4505]
[1722003652913,5.4957,181.96,181.91,6.4505]
[1722003653300,20.0,181.95,181.91,6.4505]
[1722003653500,20.0,181.98,181.91,6.4505]
[1722003653724,9.91898962,181.97,181.91,6.4505]
[1722003654026,20.0,181.96,181.91,6.4505]
[1722003654611,5.4953,181.98,181.91,6.4505]
[1722003654930,25.4954,181.97,181.91,6.4505]
[1722003655109,9.91865276,181.96,181.91,6.4505]
[1722003655311,20.0,181.95,181.91,6.4505]
[1722003655919,20.0,181.96,181.91,6.4505]
[1722003656124,9.91893343,181.95,181.91,6.4505]
[1722003656311,20.0,181.94,181.91,6.4505]
[1722003656929,20.0,181.95,181.91,6.4505]
[1722003657340,20.0,181.97,181.91,6.4505]
[1722003657652,9.91850739,181.96,181.91,6.4505]
[1722003657831,20.0,181.95,181.91,6.4505]
[1722003658336,20.0,181.98,181.91,6.4505]
[1722003658537,9.91851802,181.97,181.91,6.4505]
[1722003658735,20.0,181.96,181.91,6.4505]
[1722003659313,20.0,181.98,181.91,6.4505]
[1722003659514,9.91846314,181.97,181.91,6.4505]
[1722003659730,20.0,181.96,181.91,6.4505]
[1722003660313,29.44,182.0,181.91,6.4505]
[1722003660314,25.4951,181.99,181.91,6.4505]
[1722003660643,5.4959,181.96,181.91,6.4505]
[1722003660819,20.0,181.95,181.91,6.4505]
[1722003661517,20.0,181.96,181.91,6.4505]
[1722003661909,9.91862398,181.95,181.91,6.4505]
[1722003662109,20.0,181.94,181.91,6.4505]
[1722003662731,20.0,181.97,181.91,6.4505]
[1722003662942,9.9182887,181.96,181.92,1.09916591]
[1722003663125,5.72367025,181.98,181.93,1.09916844]
[1722003663319,9.9180416,181.97,181.93,1.09916844]
[1722003663634,5.72367025,181.98,181.91,6.4505]
[1722003663816,5.4939,182.02,181.91,7.54950117]
[1722003664241,5.72239366,182.03,181.92,1.09899472]
[1722003664413,5.493,182.05,181.94,15.0224]
[1722003664813,15.40763593,182.05,181.94,9.0224]
[1722003665045,9.91463593,182.05,181.95,1.09888719]
[1722003665347,9.91463593,182.05,181.96,1.09876198]
[1722003665841,9.91463593,182.04,181.95,1.09877788]
[1722003666038,15.40703593,182.07,181.94,26.61112861]
[1722003666234,9.91464837,182.06,181.94,26.61112861]
[1722003666415,9.91464837,182.07,181.94,26.61112861]
[1722003666621,9.91464837,182.06,181.94,26.61112861]
[1722003666938,11.21257191,182.08,181.94,26.61112861]
[1722003666939,9.91464837,182.05,181.94,26.61112861]
[1722003667129,20.0,182.04,181.94,32.10732861]
[1722003667316,20.0,182.07,181.94,32.10732861]
[1722003667654,9.91389912,182.06,181.94,32.10732861]
[1722003667937,20.0,182.05,181.94,26.61112861]
[1722003668145,21.09968391,182.05,181.94,26.61112861]
[1722003668330,9.9141972,182.04,181.94,26.61112861]
[1722003668536,20.0,182.03,181.94,26.61112861]
[1722003668721,20.0,182.05,181.94,32.10722861]
[1722003668928,20.0,182.05,181.94,26.61112861]
[1722003669127,20.0,182.06,181.94,26.61112861]
[1722003669638,20.0,182.07,181.96,16.49]
[1722003669937,20.0,182.07,181.97,1.09857302]
[1722003670134,22.27026601,182.1,181.97,1.09857302]
[1722003670321,9.91255274,182.09,181.97,6.59377302]
[1722003670523,20.0,182.08,181.97,17.58857302]
[1722003670723,5.7205727,182.11,181.98,21.9849]
[1722003670914,9.91240544,182.1,182.0,22.7092]
[1722003671116,5.49,182.15,182.01,1.0983194]
[1722003671117,6.58968391,182.15,182.01,1.0983194]
[1722003671438,20.0,182.17,182.0,23.80752118]
[1722003671439,11.20542896,182.13,182.0,23.80752118]
[1722003671628,16.50189163,182.12,182.0,6.2192]
[1722003671817,9.91130772,182.11,182.01,1.09841959]
[1722003672144,11.20542896,182.13,182.01,1.09841959]
[1722003672314,9.91177109,182.12,182.01,1.09841959]
[1722003672515,11.20542896,182.13,182.01,1.09841959]
[1722003672828,35.40258005,182.12,182.01,1.09841959]
[1722003673029,9.91178005,182.11,182.0,7.3175999]
[1722003673226,29.9123612,182.1,182.0,6.2192]
[1722003673428,20.0,182.1,182.0,6.2192]
[1722003673633,25.4915,182.1,182.0,6.2192]
[1722003674142,6.59148391,182.09,182.0,6.2192]
[1722003674345,1.09968391,182.09,182.0,6.2192]
[1722003674529,6.59168391,182.09,182.0,6.2192]
[1722003674725,20.0,182.08,182.0,6.2192]
[1722003675321,21.09968391,182.1,182.0,6.2192]
[1722003675526,9.91304856,182.09,182.0,6.2192]
[1722003675721,20.0,182.08,182.0,6.2192]
[1722003676339,1.09968391,182.11,182.0,6.2192]
[1722003676551,5.4917,182.1,182.0,6.2192]
[1722003676857,21.09968391,182.09,182.0,6.2192]
[1722003677529,20.0,182.09,182.0,6.2192]
[1722003677923,20.0,182.11,182.0,6.2192]
[1722003678133,11.20542896,182.13,182.0,6.2192]
[1722003678349,1.09968391,182.12,182.0,6.2192]
[1722003678523,12.30511287,182.13,182.0,6.2192]
[1722003678849,6.59058391,182.12,182.0,6.2192]
[1722003679149,1.09968391,182.12,182.0,6.2192]
[1722003679356,35.62577817,182.13,182.0,6.2192]
[1722003679651,20.0,182.12,182.0,6.2192]
[1722003680315,5.71482896,182.13,182.01,1.09846721]
[1722003680544,5.71482896,182.13,182.0,6.2192]
[1722003680545,6.81451287,182.13,182.0,6.2192]
[1722003680749,5.4913,182.11,182.0,6.2192]
[1722003680953,29.44,182.06,181.93,6.0441]
[1722003681119,5.4964,181.94,181.8,6.0441]
[1722003681324,6.59628391,181.93,181.8,6.0441]
[1722003681564,6.59668391,181.92,181.8,6.0441]
[1722003681863,25.4972,181.91,181.8,6.0441]
[1722003682035,1.09968391,181.9,181.8,6.0441]
[1722003682224,1.09968391,181.89,181.8,6.0441]
[1722003682840,21.09968391,181.89,181.8,6.0441]
[1722003683535,1.09968391,181.89,181.8,6.0441]
[1722003683930,1.09968391,181.88,181.8,6.0441]
[1722003684150,11.02188946,181.92,181.8,6.0441]
[1722003684454,20.0,181.91,181.8,6.0441]
[1722003684639,40.4624105,181.9,181.8,6.0441]
[1722003684825,5.4984,181.87,181.8,6.0441]
[1722003685032,21.09968391,181.86,181.8,6.0441]
[1722003685257,1.09968391,181.85,181.8,6.0441]
[1722003686125,20.0,181.87,181.8,6.0441]
[1722003686323,1.09968391,181.88,181.8,6.0441]
[1722003686550,20.0,181.9,181.8,6.0441]
[1722003686926,1.09968391,181.89,181.8,6.0441]
[1722003688147,5.4985,181.87,181.8,6.0441]
[1722003688344,26.59838391,181.86,181.8,6.0441]
[1722003688559,1.09968391,181.85,181.8,6.0441]
[1722003689367,21.09968391,181.88,181.8,6.0441]
[1722003689550,1.09968391,181.85,181.77,6.6532]
[1722003689751,1.09968391,181.85,181.7,6.1214]
[1722003689967,5.5003,181.81,181.7,6.1214]
[1722003690249,20.0,181.85,181.7,11.6247]
[1722003690250,21.09968391,181.8,181.7,11.6247]
[1722003690455,1.09968391,181.84,181.71,13.7578]
[1722003690748,20.0,181.85,181.7,6.1214]
[1722003690749,1.09968391,181.83,181.7,6.1214]
[1722003690951,1.09968391,181.82,181.7,6.1214]
[1722003692181,21.09968391,181.82,181.7,6.1214]
[1722003693452,1.09968391,181.82,181.7,6.1214]
[1722003693651,6.59808391,181.88,181.71,1.10021778]
[1722003693853,20.0,181.87,181.74,5.5022]
[1722003694090,1.09968391,181.86,181.7,6.1214]
[1722003694256,29.44,181.81,181.61,1.10064971]
[1722003694466,1.09968391,181.8,181.61,13.7652]
[1722003694662,1.09968391,181.79,181.61,13.7652]
[1722003694860,5.5015,181.77,181.62,6.2907516]
[1722003695063,20.0,181.8,181.62,6.2907516]
[1722003695064,21.09968391,181.76,181.62,0.7850516]
[1722003695263,20.0,181.75,181.63,5.5054]
[1722003695559,20.0,181.75,181.62,0.7850516]
[1722003695560,1.09968391,181.74,181.62,0.7850516]
[1722003695756,6.60238391,181.73,181.62,0.7850516]
[1722003696081,25.503,181.72,181.62,0.7850516]
[1722003696270,5.5039,181.69,181.62,0.7850516]
[1722003696582,1.09968391,181.68,181.62,0.7850516]
[1722003696772,5.5039,181.69,181.62,0.7850516]
[1722003696773,1.09968391,181.67,181.62,0.7850516]
[1722003697163,20.0,181.69,181.62,0.7850516]
[1722003697362,1.09968391,181.68,181.62,0.7850516]
[1722003697763,21.09968391,181.72,181.62,0.7850516]
[1722003698176,26.60268391,181.72,181.62,0.7850516]
[1722003698670,5.5032,181.71,181.62,0.7850516]
[1722003698857,43.12378391,181.7,181.62,0.7850516]
[1722003699183,23.12378391,181.7,181.62,0.7850516]
[1722003699365,20.0,181.69,181.62,0.7850516]
[1722003699561,6.60388391,181.68,181.62,0.7850516]
[1722003699876,5.5049,181.66,181.62,0.7850516]
[1722003700079,6.60478391,181.65,181.62,0.7850516]
[1722003700371,5.5056,181.63,181.62,0.7850516]
[1722003701086,25.5056,181.63,181.62,0.7850516]
[1722003701255,5.5075,181.57,181.48,6.3698]
[1722003701457,1.09968391,181.56,181.48,6.3698]
[1722003702762,6.60728391,181.57,181.48,6.3698]
[1722003703466,1.09968391,181.57,181.48,6.3698]
[1722003703985,26.60728391,181.57,181.48,6.3698]
[1722003704189,1.09968391,181.57,181.48,6.3698]
[1722003704375,5.5075,181.57,181.48,6.3698]
[1722003704577,1.09968391,181.56,181.48,6.3698]
[1722003705192,1.09968391,181.56,181.44,16.3932516]
[1722003705193,5.5082,181.55,181.44,16.3932516]
[1722003705499,1.09968391,181.55,181.44,0.7850516]
[1722003706395,21.09968391,181.57,181.44,0.7850516]
[1722003706601,21.09968391,181.57,181.44,6.2964516]
[1722003706765,5.5081,181.55,181.44,0.7850516]
[1722003706968,21.09968391,181.57,181.44,0.7850516]
[1722003707394,5.7129568,181.58,181.48,5.5099]
[1722003707728,1.09968391,181.6,181.48,5.5099]
[1722003707895,1.09968391,181.6,181.47,5.5105]
[1722003708199,32.31955557,181.6,181.45,5.5111]
[1722003708500,5.5079,181.56,181.44,0.7850516]
[1722003708796,5.5074,181.58,181.44,1.88713348]
[1722003708995,1.09968391,181.57,181.44,6.2964516]
[1722003709201,21.09968391,181.58,181.44,0.7850516]
[1722003709403,1.09968391,181.57,181.44,0.7850516]
[1722003709694,5.5084,181.54,181.44,0.7850516]
[1722003709905,1.09968391,181.53,181.44,0.7850516]
[1722003710287,1.09968391,181.55,181.44,0.7850516]
[1722003710670,21.09968391,181.56,181.44,0.7850516]
[1722003710895,5.5081,181.55,181.44,0.7850516]
[1722003711090,1.09968391,181.54,181.44,0.7850516]
[1722003711398,1.09968391,181.56,181.44,6.2964516]
[1722003711602,5.71317166,181.6,181.45,1.10185741]
[1722003711801,5.71317166,181.6,181.47,19.2864]
[1722003711989,1.09968391,181.59,181.46,15.6436]
[1722003712376,1.09968391,181.59,181.47,5.5105]
[1722003712672,1.09968391,181.59,181.46,15.6436]
[1722003713102,5.5081,181.55,181.46,15.6436]
[1722003713302,1.09968391,181.54,181.44,0.7850516]
[1722003713477,6.60808391,181.54,181.44,0.7850516]
[1722003713883,5.5087,181.53,181.44,0.7850516]
[1722003714099,1.09968391,181.52,181.44,0.7850516]
[1722003714290,5.5104,181.48,181.44,0.7850516]
[1722003714598,16.372,181.52,181.44,0.7850516]
[1722003714599,1.09968391,181.47,181.44,0.7850516]
[1722003714803,16.53,181.55,181.44,0.7850516]
[1722003714804,1.09968391,181.56,181.44,16.6667516]
[1722003715008,6.60688391,181.58,181.45,6.4194]
[1722003715190,1.09968391,181.55,181.45,11.9305]
[1722003715399,1.09968391,181.59,181.45,11.9305]
[1722003715706,6.60668391,181.59,181.45,6.4194]
[1722003716012,5.5078,181.56,181.45,6.4194]
[1722003716208,1.09968391,181.55,181.45,6.4194]
[1722003716377,1.09968391,181.54,181.45,6.4194]
[1722003717186,6.60808391,181.54,181.45,6.4194]
[1722003717405,1.09968391,181.54,181.45,6.4194]
[1722003719082,25.70932228,181.56,181.46,1.10204555]
[1722003719410,25.70932228,181.56,181.46,32.0705]
[1722003719411,5.70932228,181.56,181.46,32.0705]
[1722003719585,1.09968391,181.64,181.46,32.0705]
[1722003719793,5.70594118,181.65,181.5,22.8041]
[1722003720104,1.09968391,181.64,181.5,6.2741]
[1722003720306,1.09968391,181.64,181.5,11.7836]
[1722003720692,1.09968391,181.64,181.5,20.0474]
[1722003720992,1.09968391,181.64,181.5,25.5569]
[1722003721291,26.60508391,181.64,181.5,20.0474]
[1722003721606,1.09968391,181.64,181.5,6.2741]
[1722003721797,5.5062,181.62,181.5,6.2741]
[1722003721999,5.5058,181.63,181.5,6.2741]
[1722003722311,6.60578391,181.62,181.5,6.2741]
[1722003722489,1.09968391,181.62,181.5,6.2741]
[1722003722693,20.0,181.62,181.5,11.7837]
[1722003722909,29.44,181.64,181.5,7.37561453]
[1722003723213,1.09968391,181.63,181.5,7.37572505]
[1722003723402,29.44,181.64,181.51,5.5093]
[1722003723907,6.80562509,181.65,181.5,37.67942505]
[1722003724206,5.70594118,181.65,181.52,17.63146234]
[1722003724412,1.09968391,181.64,181.52,5.5087]
[1722003724722,1.09968391,181.64,181.51,19.2818]
[1722003724926,1.09968391,181.64,181.5,6.2741]
[1722003725104,5.5063,181.61,181.5,6.2741]
[1722003725287,1.09968391,181.6,181.5,6.2741]
[1722003725790,21.09968391,181.61,181.5,6.2741]
[1722003726399,1.09968391,181.6,181.5,6.2741]
[1722003727293,20.0,181.6,181.5,6.2741]
[1722003727495,20.0,181.6,181.5,11.7835]
[1722003727688,1.09968391,181.59,181.5,6.2741]
[1722003728695,26.60558391,181.63,181.5,6.2741]
[1722003728904,21.09968391,181.63,181.5,11.7836]
[1722003729222,20.0,181.63,181.5,11.7836]
[1722003729788,21.09968391,181.63,181.5,20.0474]
[1722003729985,1.09968391,181.63,181.52,5.5089]
[1722003730229,1.09968391,181.65,181.51,1.10137651]
[1722003730391,11.2074752,181.66,181.52,1.10137108]
[1722003730593,5.7026752,181.66,181.53,30.3018]
[1722003730797,5.7026752,181.66,181.55,15.6447]
[1722003731321,5.7026752,181.66,181.56,6.2125]
[1722003731505,6.60298391,181.71,181.57,1.10112624]
[1722003731816,5.70632984,181.69,181.58,1.10112624]
[1722003732023,1.09968391,181.68,181.56,22.7425]
[1722003732188,5.70632984,181.69,181.56,11.7203]
[1722003732388,5.70632984,181.69,181.56,21.08297975]
[1722003732610,5.70632984,181.69,181.57,5.5074]
[1722003733001,5.70632984,181.69,181.57,22.0374]
[1722003733303,1.09968391,181.68,181.56,6.2125]
[1722003733506,1.09968391,181.67,181.56,6.2125]
[1722003733715,5.70632984,181.69,181.57,1.10116532]
[1722003733923,20.0,181.68,181.58,1.10103525]
[1722003734214,5.70632984,181.69,181.57,1.10101494]
[1722003734415,45.7644,181.72,181.58,1.10101494]
[1722003734717,5.70948419,181.71,181.56,6.2125]
[1722003735018,1.09968391,181.7,181.57,16.53]
[1722003735235,5.5037,181.7,181.58,1.10093065]
[1722003735401,6.60338391,181.7,181.56,21.08223065]
[1722003735713,20.0,181.69,181.56,6.2125]
[1722003735890,1.09968391,181.68,181.56,6.2125]
[1722003736217,1.09968391,181.67,181.56,6.2125]
[1722003736400,21.09968391,181.67,181.56,6.2125]
[1722003736603,1.09968391,181.67,181.56,6.2125]
[1722003736805,26.60418391,181.67,181.56,6.2125]
[1722003737122,6.60418391,181.67,181.56,6.2125]
[1722003737321,5.5057,181.63,181.56,6.2125]
[1722003737494,20.0,181.62,181.52,6.1451]
[1722003737698,1.09968391,181.62,181.52,6.1451]
[1722003738022,6.60588391,181.62,181.52,6.1451]
[1722003738201,26.4945,181.66,181.52,6.1451]
[1722003738202,5.5057,181.63,181.52,6.1451]
[1722003738523,20.0,181.62,181.52,6.1451]
[1722003738689,1.09968391,181.61,181.52,6.1451]
[1722003738897,1.09968391,181.6,181.52,6.1451]
[1722003739099,6.60628391,181.6,181.52,6.1451]
[1722003739302,1.09968391,181.6,181.52,6.1451]
[1722003739610,20.0,181.61,181.52,6.1451]
[1722003740614,5.5075,181.57,181.43,11.9156]
[1722003740803,1.09968391,181.56,181.43,11.9156]
[1722003741320,1.09968391,181.56,181.43,7.50604947]
[1722003741525,21.09968391,181.59,181.43,29.54774947]
[1722003741714,5.5077,181.57,181.43,13.01767479]
[1722003742122,1.09968391,181.57,181.44,6.2963516]
[1722003742512,1.09968391,181.57,181.45,5.511]
[1722003742716,1.09968391,181.57,181.44,22.8263516]
[1722003742924,5.5073,181.58,181.44,22.8263516]
[1722003743233,5.5073,181.58,181.44,17.3150516]
[1722003743535,5.5073,181.58,181.44,22.8264516]
[1722003743831,26.60658391,181.59,181.44,22.8264516]
[1722003744033,26.60658391,181.59,181.44,6.2964516]
[1722003744237,21.09968391,181.59,181.44,0.7850516]
[1722003744617,5.5078,181.56,181.44,0.7850516]
[1722003744932,21.09968391,181.55,181.44,0.7850516]
[1722003745137,1.09968391,181.54,181.44,0.7850516]
[1722003745933,6.60818391,181.54,181.44,0.7850516]
[1722003746318,1.09968391,181.54,181.44,0.7850516]
[1722003746525,1.09968391,181.55,181.44,0.7850516]
[1722003746844,1.09968391,181.54,181.44,0.7850516]
[1722003749336,1.09968391,181.53,181.44,0.7850516]
[1722003750045,5.71339565,181.58,181.47,5.5105]
[1722003750223,5.71339565,181.58,181.48,1.10171418]
[1722003750425,1.09968391,181.58,181.45,5.5111]
[1722003750630,5.5085,181.54,181.44,0.7850516]
[1722003750937,5.71096494,181.57,181.45,5.5108]
[1722003751241,1.09968391,181.6,181.45,1.10180424]
[1722003751415,38.40208937,181.62,181.47,5.5104]
[1722003751614,5.71026384,181.6,181.47,5.5104]
[1722003751938,5.71026384,181.6,181.48,6.61191527]
[1722003752138,5.71026384,181.6,181.49,22.09402252]
[1722003752338,1.09968391,181.64,181.5,11.5521]
[1722003752339,5.710264,181.61,181.5,11.5521]
[1722003752532,5.70910399,181.63,181.5,6.0426]
[1722003752919,1.09968391,181.62,181.5,6.0426]
[1722003753126,6.60568391,181.62,181.5,6.0426]
[1722003753629,5.5066,181.6,181.5,6.0426]
[1722003753826,1.09968391,181.59,181.5,6.0426]
[1722003754039,1.09968391,181.62,181.5,6.0426]
[1722003754234,7.97600542,181.63,181.5,6.0426]
[1722003754426,1.09968391,181.61,181.5,6.0426]
[1722003754741,1.09968391,181.6,181.5,6.0426]
[1722003755042,6.60618391,181.61,181.5,6.0426]
[1722003755442,1.09968391,181.61,181.5,6.0426]
[1722003755644,14.58158933,181.63,181.51,1.1015718]
[1722003755940,14.58158933,181.63,181.5,6.0426]
[1722003755941,7.97600542,181.63,181.5,7.14417076]
[1722003756145,7.97600542,181.63,181.51,5.509]
[1722003756348,5.70910399,181.63,181.52,5.509]
[1722003756661,6.60408391,181.68,181.52,14.87386419]
[1722003756836,6.80708535,181.67,181.52,14.87386419]
[1722003757142,6.80708535,181.67,181.53,5.5086]
[1722003757349,12.31158535,181.67,181.54,1.10132539]
[1722003757528,6.80708535,181.67,181.55,6.0604]
[1722003757851,5.70740144,181.67,181.55,11.5684]
[1722003758346,5.70740144,181.67,181.55,12.66959282]
[1722003759021,5.70740144,181.67,181.56,15.9109]
[1722003759420,1.09968391,181.66,181.56,15.9109]
[1722003759718,6.60458391,181.66,181.56,15.9109]
[1722003759913,1.09968391,181.66,181.56,15.9109]
[1722003760351,6.60448391,181.66,181.56,15.9109]
[1722003760551,5.5051,181.65,181.56,15.9109]
[1722003760724,1.09968391,181.64,181.56,15.9109]
[1722003760926,26.60508391,181.64,181.56,15.9109]
[1722003761235,26.60508391,181.64,181.46,17.01234994]
[1722003761236,45.0386,181.62,181.46,17.01234994]
[1722003761415,21.09968391,181.61,181.47,6.4426]
[1722003761619,1.09968391,181.6,181.47,6.4426]
[1722003762155,5.5076,181.57,181.47,6.4426]
[1722003762451,5.508,181.56,181.47,6.4426]
[1722003762764,5.5075,181.57,181.47,7.54461973]
[1722003763049,6.60748391,181.56,181.47,6.4426]
[1722003763248,25.5082,181.55,181.47,6.4426]
[1722003763427,1.09968391,181.54,181.47,6.4426]
[1722003763623,6.60808391,181.54,181.47,6.4426]
[1722003763828,20.0,181.53,181.47,6.4426]
[1722003764248,21.09968391,181.57,181.47,6.4426]
[1722003764769,5.5078,181.56,181.47,6.4426]
[1722003764959,21.09968391,181.55,181.47,6.4426]
[1722003765137,20.0,181.55,181.47,6.4426]
[1722003765650,5.5079,181.56,181.47,6.4426]
[1722003765842,20.0,181.55,181.47,6.4426]
[1722003766160,1.09968391,181.54,181.47,6.4426]
[1722003766362,6.60808391,181.54,181.47,6.4426]
[1722003766784,1.09968391,181.54,181.47,6.4426]
[1722003766975,20.0,181.54,181.47,6.4426]
[1722003767262,1.09968391,181.56,181.47,6.4426]
[1722003767464,25.70488773,181.57,181.47,6.4426]
[1722003767813,1.09968391,181.63,181.49,21.2882]
[1722003767941,6.80390846,181.62,181.49,15.7786]
[1722003768139,5.5066,181.6,181.49,15.7786]
[1722003768341,5.5072,181.58,181.49,15.7786]
[1722003768643,6.60738391,181.57,181.49,15.7786]
[1722003768951,1.09968391,181.57,181.49,15.7786]
[1722003769344,21.09968391,181.57,181.49,15.7786]
[1722003769544,20.0,181.57,181.49,15.7786]
[1722003769865,20.0,181.58,181.49,15.7786]
[1722003770073,21.09968391,181.61,181.49,15.7786]
[1722003770253,20.0,181.61,181.49,16.88027316]
[1722003770657,20.0,181.61,181.49,15.7786]
[1722003770857,1.09968391,181.6,181.49,15.7786]
[1722003771042,5.5071,181.59,181.49,15.7786]
[1722003771242,26.60688391,181.58,181.49,15.7786]
[1722003771542,21.09968391,181.58,181.49,15.7786]
[1722003771744,5.70422455,181.62,181.49,15.7786]
[1722003771745,20.0,181.59,181.49,15.7786]
[1722003771970,20.0,181.6,181.49,15.7786]
[1722003772360,5.5071,181.59,181.49,15.7786]
[1722003772553,26.60688391,181.58,181.49,15.7786]
[1722003772753,21.09968391,181.6,181.49,15.7786]
[1722003772955,5.70422455,181.62,181.5,5.5096]
[1722003773151,5.70422455,181.62,181.49,22.39002422]
[1722003773357,6.80390846,181.62,181.52,6.0907]
[1722003773857,12.31000846,181.62,181.52,6.0907]
[1722003774059,6.80390846,181.62,181.52,6.0907]
[1722003774354,1.09968391,181.61,181.52,6.0907]
[1722003774661,6.60628391,181.6,181.52,6.0907]
[1722003774846,20.0,181.59,181.52,6.0907]
[1722003775043,21.09968391,181.6,181.52,6.0907]
[1722003775242,20.0,181.59,181.52,6.0907]
[1722003775468,1.09968391,181.58,181.52,6.0907]
[1722003776065,1.09968391,181.57,181.52,6.0907]
[1722003776853,21.09968391,181.57,181.52,6.0907]
[1722003777363,26.60718391,181.57,181.52,6.0907]
[1722003777563,20.0,181.57,181.52,6.0907]
[1722003777767,21.09968391,181.57,181.52,6.0907]
[1722003777976,20.0,181.57,181.52,6.0907]
[1722003778149,21.09968391,181.61,181.52,6.0907]
[1722003778356,5.70307183,181.59,181.52,6.0907]
[1722003778558,26.60708391,181.58,181.52,6.0907]
[1722003778880,1.09968391,181.57,181.52,6.0907]
[1722003779254,6.60718391,181.57,181.52,6.0907]
[1722003779456,20.0,181.56,181.52,6.0907]
[1722003779754,1.09968391,181.55,181.52,6.0907]
[1722003780168,1.09968391,181.54,181.52,6.0907]
[1722003780378,20.0,181.56,181.52,6.0907]